Cogmind - Beta 16 @@@ ROGUE MODE // 2025.12.26 @ 19:28:14 Player: Compilatron Result: Destroyed by G-34 Mercenary with Small Laser Performance ------------- Evolutions (1) 500 Regions Visited (3) 600 Robots Destroyed (38) 190 Value Destroyed (1022) 1022 Prototype IDs (1) 20 Alien Tech Used (0) 0 Bonus (0) 0 TOTAL SCORE: 2332 Bonus ------- None Cogmind --------- Core Integrity 0/400 Matter 206/300 Energy 280/280 System Corruption 2% Temperature Cool (6) Movement Walking (120) Location -9/Storage Parts ------- > --- POWER (1) -------- Cooled Ion Engine > --- PROPULSION (3) --- Aluminum Leg Improved Aluminum Leg Improved Aluminum Leg > --- UTILITY (3) ------ Large Storage Unit Sensor Array Advanced Targeting Computer > --- WEAPON (2) ------- Heavy Assault Rifle Heavy Assault Rifle > --- INVENTORY (15) --- Improved Ion Engine Improved Ion Engine Light Treads Light Treads Light Treads Aluminum Leg Improved Aluminum Leg Wheel High-capacity Battery (250) High-capacity Matter Pod (200) Signal Interpreter Beam Rifle Shotgun Rocket Launcher Mini Grenade Launcher Peak State ------------ > --- POWER ------------ Cooled Ion Engine > --- PROPULSION ------- Aluminum Leg Improved Aluminum Leg Improved Aluminum Leg > --- UTILITY ---------- Large Storage Unit Sensor Array Advanced Targeting Computer > --- WEAPON ----------- Heavy Assault Rifle Rocket Launcher > --- INVENTORY -------- Light Ion Engine Improved Ion Engine Light Treads Light Treads Light Treads Aluminum Leg Improved Aluminum Leg Wheel High-capacity Battery High-capacity Matter Pod Beam Rifle Heavy Assault Rifle Shotgun Mini Grenade Launcher [Rating: 19] Favorites ----------- Power Ion Engine Engine Ion Engine Propulsion Aluminum Leg Treads Light Treads Leg Aluminum Leg Wheel Wheel Utility Large Storage Unit Device Sensor Array Storage Large Storage Unit Processor Advanced Targeting Computer Weapon Assault Rifle Energy Gun Beam Rifle Ballistic Gun Assault Rifle Launcher Rocket Launcher Build | -11 -10 -9 -9 ------- Run | Yrd Mat Mat Sto Slots Evolved 2 | . . 2 . Power . | . . . . Propulsion 1 | . . 1 . Utility 1 | . . 1 . Weapon . | . . . . Parts Attached 27 | . 3 21 3 Power 2 | . . 2 . Engine 2 | . . 2 . Core . | . . . . Reactor . | . . . . Propulsion 12 | . 2 8 2 Treads 2 | . 2 . . Leg 9 | . . 7 2 Wheel 1 | . . 1 . Hover . | . . . . Flight . | . . . . Utility 3 | . 1 2 . Device 1 | . . 1 . Storage 1 | . 1 . . Processor 1 | . . 1 . Hackware . | . . . . Protection . | . . . . Artifact . | . . . . Weapon 10 | . . 9 1 Energy Gun 4 | . . 4 . Energy Cannon . | . . . . Ballistic Gun 5 | . . 4 1 Ballistic Cannon . | . . . . Launcher 1 | . . 1 . Special Weapon . | . . . . Impact Weapon . | . . . . Slashing Weapon . | . . . . Piercing Weapon . | . . . . Special Melee Weapon . | . . . . Unidentified Prototypes 1 | . . 1 . Parts Lost 7 | . 1 6 . Power 1 | . . 1 . Propulsion 3 | . 1 2 . Utility . | . . . . Weapon 3 | . . 3 . Highest Loss Streak 3 | . 1 3 . To Critical Strikes . | . . . . Average Backups 11 | . 7 12 14 Power 1 | . 1 1 2 Propulsion 5 | . 3 5 6 Utility 1 | . . 1 2 Weapon 3 | . 1 3 4 Tool/Special . | . . . . Unused Backups 20 | . 5 4 11 Power 4 | . 1 1 2 Propulsion 6 | . 1 . 5 Utility 3 | . 1 . 2 Weapon 7 | . 2 3 2 Tool/Special . | . . . . Average Slot Usage (%) 81 | . 83 78 92 Engine 11 | . 14 10 11 Treads 3 | . 2 3 . Leg 26 | . 23 26 33 Device 1 | . . 1 11 Storage 11 | . 14 11 11 Processor 3 | . . 4 11 Energy Gun 8 | . 14 7 . Ballistic Gun 11 | . 14 11 8 Launcher 1 | . . 1 6 Peak Build Rating 19 | . 6 17 19 Average Rating 11 | . 5 12 17 On Entrance 8 | 6 6 6 16 Avg Prop Armor Cover (%) 19 | . . 19 . Naked Turns . | . . . . Heaviest Build 35 | 14 29 34 35 Greatest Support 40 | 20 40 40 36 Greatest Overweight (x) 2 | . 1 2 . Average Overweight (x) . | . . . . Largest Inventory Capacity 15 | . 15 15 15 Average Capacity 13 | . 8 15 15 Most Carried 15 | . 8 15 15 Average Carried 11 | . 7 12 14 Final Capacity 15 | 8 15 15 15 Final Carried 15 | 6 7 15 15 Class Distribution -------------------- 76% | Mutant 23% | Scavenger-Mutant Dominant Class ---------------- Mutant | -10/Materials Mutant | -9/Materials Mutant | -9/Storage Resources | -11 -10 -9 -9 ----------- Run | Yrd Mat Mat Sto Matter Collected 1001 | 200 117 566 118 Remotely . | . . . . Salvage Created 1302 | . 215 851 236 Parts 102 | . 18 62 22 Haulers Intercepted 1 | . . 1 . Recyclers Shooed 1 | . . 1 . Parts Field Recycled . | . . . . Retrieved Matter . | . . . . Parts Self-Destructed . | . . . . Prevented . | . . . . Parts Restored . | . . . . Kills | -11 -10 -9 -9 ------- Run | Yrd Mat Mat Sto Combat Hostiles Destroyed 37 | . 11 19 7 Guns 32 | . 11 18 3 AOE 4 | . . . 4 Classes Destroyed 4 | . 2 2 . Hauler 1 | . . 1 . Swarmer 16 | . 9 4 3 Grunt 11 | . 2 8 1 Sentry 10 | . . 7 3 Best Kill Streak 5 | . 3 5 4 Combat Bots Only 4 | . 3 4 4 Max Kills in Single Turn 3 | . 2 2 3 Gunslinging 1 | . 1 1 . Exploded 3 | . . . 3 Melee . | . . . . Uniques/NPCs Destroyed . | . . . . Combat | -11 -10 -9 -9 -------- Run | Yrd Mat Mat Sto Hostile Shots Fired 240 | . 55 130 55 Missed 74 | . 14 39 21 Hits 166 | . 41 91 34 Projectile 166 | . 41 91 34 AOE 1 | . . 1 . Critical Strikes 3 | . . 3 . Damage Taken 2063 | . 404 1214 445 Core 480 | . 80 296 104 Absorbed by Shields . | . . . . Core Remaining (%) 84 | 100 68 . . Volleys Fired 112 | . 30 66 16 Largest 2 | . 2 2 2 Hottest 79 | . 70 79 46 Shots Fired 213 | . 60 124 29 Gun 209 | . 60 123 26 Cannon . | . . . . Launcher 4 | . . 1 3 Special . | . . . . Kinetic 123 | . 30 67 26 Thermal 86 | . 30 56 . Explosive 4 | . . 1 3 Electromagnetic . | . . . . Robot Hit Streak 18 | . 9 18 18 Robot Miss Streak 4 | . 4 3 2 Penetration Max . | . . . . Secondary Targets 5 | . 2 3 . Max Gunslinging Chain 1 | . 1 1 . Shots Hit Robots 142 | . 36 80 26 Core Hits 53 | . 13 30 10 Critical Kills . | . . . . Critical Parts Destroyed . | . . . . Critical Strikes 3 | . . 3 . Burn 3 | . . 3 . Melee Attacks . | . . . . Impact . | . . . . Slashing . | . . . . Piercing . | . . . . Sneak Attacks . | . . . . Combat Hostiles . | . . . . Follow-up Attacks . | . . . . Damage Inflicted 2110 | . 457 1144 509 Guns 1966 | . 457 1144 365 Cannons . | . . . . Explosions 144 | . . . 144 Melee . | . . . . Ramming . | . . . . Kinetic 1175 | . 231 579 365 Thermal 791 | . 226 565 . Explosive 144 | . . . 144 Electromagnetic . | . . . . Impact . | . . . . Slashing . | . . . . Piercing . | . . . . Highest Corruption 2 | . . 2 2 Average Corruption 1 | . . 1 2 Corruption Purged . | . . . . Corruption Blocked . | . . . . Effects 13 | . . 13 . Message Errors 6 | . . 6 . Matter Fused 3 | . . 3 . Heat Flow Errors 1 | . . 1 . Energy Discharges 1 | . . 1 . Data Loss (minor) 2 | . . 2 . Overload Shots . | . . . . Overflow Damage . | . . . . Projectiles . | . . . . Explosions . | . . . . Melee . | . . . . Knockbacks . | . . . . Impact . | . . . . Kinetic . | . . . . Secondary . | . . . . Self-Inflicted Damage 66 | . . 33 33 Shots 2 | . . 1 1 Rammed . | . . . . Targets Rammed 1 | . . 1 . Kicked 1 | . . 1 . Crushed . | . . . . Highest Temperature 293 | . 177 293 5 Average Temperature 60 | . 49 69 3 Received Heat Transfer 633 | . 96 381 156 Siege Activations . | . . . . Martial Activations . | . . . . Shielding Activations . | . . . . Robots Disrupted . | . . . . Combat Hostiles . | . . . . Robots Corrupted . | . . . . Combat Hostiles . | . . . . Parts Fried . | . . . . Impact Corruptions . | . . . . Robots Melted 1 | . . 1 . Combat Hostiles 1 | . . 1 . Parts Melted 6 | . 2 4 . Heat Transferred 2332 | . 666 1666 . Parts Sabotaged . | . . . . Parts Stolen . | . . . . Parts Stripped . | . . . . Power Chain Reactions . | . . . . Alert | -11 -10 -9 -9 ------- Run | Yrd Mat Mat Sto Maximum Alert Level . | . . . . Low Security (%) 100 | . 100 100 100 Level 1 . | . . . . Level 2 . | . . . . Level 3 . | . . . . Level 4 . | . . . . Level 5 . | . . . . High Security . | . . . . Max Security . | . . . . Peak Influence 186 | . 99 173 186 Initial 42 | . . 24 42 Average 69 | . 44 72 132 Influence Increases 1077 | . 296 567 214 Destroy 0b10 Robot/C 740 | . 220 380 140 Destroy 0b10 Robot/NC 5 | . . 5 . Destroy Leader 202 | . 40 112 50 Successful Hack 12 | . 4 8 . Disable Machine 15 | . . 15 . Destroy Structure 43 | . 2 17 24 Lose Combat Pursuer 60 | . 30 30 . Influence Decreases 901 | . 237 525 139 Entered New Map 94 | . . 35 59 Time Decay 737 | . 227 430 80 Lost Part 70 | . 10 60 . Squads Dispatched 5 | . 1 1 3 Investigation 1 | . . . 1 Extermination . | . . . . Reinforcement 2 | . 1 1 . Assault . | . . . . Garrison 2 | . . . 2 Intercept . | . . . . Searches Triggered . | . . . . Construction Impeded . | . . . . Haulers Reinforced . | . . . . Active Scanning Responses . | . . . . Cargo Convoy Interrupts . | . . . . Stealth | -11 -10 -9 -9 --------- Run | Yrd Mat Mat Sto Distress Signals 3 | . 2 1 . Communications Jammed . | . . . . Distress Signals . | . . . . Times Spotted 51 | . 19 21 11 Peak Tracking Total 6 | . 5 6 5 Tactical Retreats 3 | . 1 2 . Traps | -11 -10 -9 -9 ------- Run | Yrd Mat Mat Sto Traps Triggered 3 | . 1 2 . Indirectly . | . . . . Trap Hack Attempts . | . . . . Triggered . | . . . . Disarmed . | . . . . Reprogrammed . | . . . . Reused . | . . . . Traps Extracted . | . . . . Installed . | . . . . Triggered . | . . . . Machines | -11 -10 -9 -9 ---------- Run | Yrd Mat Mat Sto Machines Disabled 1 | . . 1 . Max in Single Turn 1 | . . 1 . Machines Repaired . | . . . . Machines Dismantled . | . . . . Machines Sabotaged . | . . . . Overloaded Fab Kills . | . . . . Hacking | -11 -10 -9 -9 --------- Run | Yrd Mat Mat Sto Machines Accessed 11 | . 4 4 3 Terminals 9 | . 4 4 1 Fabricators . | . . . . Repair Stations . | . . . . Recycling Units 1 | . . . 1 Scanalyzers . | . . . . Garrison Access 1 | . . . 1 Total Hacks 26 | . 11 8 7 Successful 11 | . 4 4 3 Failed 15 | . 7 4 4 Catastrophic 4 | . 1 2 1 Database Lockouts . | . . . . Manual 18 | . 10 6 2 Terminals 21 | . 11 8 2 Fabricators . | . . . . Repair Stations . | . . . . Recycling Units 3 | . . . 3 Scanalyzers . | . . . . Garrison Access 2 | . . . 2 Terminal Hacks 4 | . 1 2 1 Robot Analysis 1 | . . 1 . Open Door 1 | . . . 1 Locate Traps 2 | . 1 1 . Fabricator Hacks . | . . . . Repair Station Hacks . | . . . . Recycling Unit Hacks 2 | . . . 2 Process 1 | . . . 1 Report Inventory 1 | . . . 1 Scanalyzer . | . . . . Garrison Access Hacks . | . . . . Unauthorized Hacks 5 | . 3 2 . Terminals 5 | . 3 2 . Botnet 5 | . 3 2 . Fabricators . | . . . . Repair Stations . | . . . . Recycling Units . | . . . . Scanalyzers . | . . . . Garrison Access . | . . . . Data Cores Recovered . | . . . . Used . | . . . . Hacking Detections 10 | . 4 3 3 Full Trace Events 2 | . 1 . 1 Feedback Events . | . . . . Feedback Blocked . | . . . . Robot Schematics Acquired . | . . . . Robots Built . | . . . . Authchips . | . . . . Time . | . . . . Total Robot Build Rating . | . . . . Part Schematics Acquired . | . . . . Parts Built . | . . . . Authchips . | . . . . Time . | . . . . Total Part Build Rating . | . . . . Part Studies Acquired . | . . . . Parts Repaired . | . . . . Time . | . . . . Parts Recycled . | . . . . Recycled Matter 57 | . . . 57 Retrieved Matter . | . . . . Retrieved Components . | . . . . Parts Scanalyzed . | . . . . Part Schematics Acquired . | . . . . Parts Damaged . | . . . . Bothacking | -11 -10 -9 -9 ------------ Run | Yrd Mat Mat Sto Used RIF Installer . | . . . . Robots Hacked . | . . . . Non-combat . | . . . . Combat . | . . . . Robot Hacks Applied . | . . . . Relay Couplers Released . | . . . . Fabnet Peak Effective % . | . . . . Robots Rewired . | . . . . Allies Hacked . | . . . . Hacks Repelled . | . . . . Allies | -11 -10 -9 -9 -------- Run | Yrd Mat Mat Sto Total Allies . | . . . . Largest Group . | . . . . Highest-Rated Group . | . . . . Highest-Rated Ally . | . . . . Total Orders . | . . . . Ally Attacks . | . . . . Total Damage . | . . . . Kills . | . . . . Allies Corrupted . | . . . . Allies Melted . | . . . . Intel | -11 -10 -9 -9 ------- Run | Yrd Mat Mat Sto Active Infowar (turns) 296 | . . 129 167 Sensors 296 | . . 129 167 Robot Analysis Total 1 | . . 1 . Derelict Logs Recovered . | . . . . Drone Launches . | . . . . Drone Recoveries . | . . . . Exploration | -11 -10 -9 -9 ------------- Run | Yrd Mat Mat Sto Turns Passed 2031 | . 568 1296 167 Spaces Moved 1156 | 1 350 712 93 Core . | . . . . Treads 92 | . 37 55 . Legs 1002 | 1 313 595 93 Wheels 62 | . . 62 . Hover . | . . . . Flight . | . . . . Fastest Speed 110 | 120 120 110 120 Average Speed 136 | 120 127 143 120 Slowest Speed 260 | 120 190 260 120 Overloaded Moves . | . . . . Propulsion Burnouts . | . . . . Robots Hopped . | . . . . Potential Cave-ins . | . . . . Cave-ins Triggered . | . . . . Exploration Rate (%) 37 | 2 72 56 19 Regions Visited 3 Branch Regions 1 Pre-discovered Areas . | . . . . Known Exits Taken . | . . . . Unknown Exits Taken 3 | 1 1 1 . Scrap Searched . | . . . . Spaces Dug . | . . . . Terrain Destroyed 49 | . . 15 34 Melee . | . . . . Projectile . | . . . . AOE 49 | . . 15 34 Terrain Rammed . | . . . . Walls Destroyed . | . . . . Machines Disabled . | . . . . Actions | -11 -10 -9 -9 --------- Run | Yrd Mat Mat Sto Total 1394 | . 410 859 125 Wait 56 | . 25 31 . Move 1153 | . 349 711 93 Hop . | . . . . Pick Up 25 | . 2 17 6 Fast Attach 5 | . 1 4 . Attach 8 | . 1 6 1 Detach . | . . . . Swap 17 | . 1 13 3 Drop 17 | . 1 10 6 Fire 112 | . 30 66 16 Melee . | . . . . Ram . | . . . . Kick 1 | . . 1 . Crush . | . . . . Escape Stasis . | . . . . Rewire . | . . . . Trap . | . . . . Miscellaneous . | . . . . Route ------- -11/Scrapyard -10/Materials (discovered 5 exits: *Mat x3 / [*Min x2]) -9/Materials (discovered 4 exits: [*Mat] / [*Min] / *Sto x2) -9/Storage History --------- Turn | Location | Event 1 | -11/Scrapyard | Discovered new exit (range 0) 1 | -11/Scrapyard | Entered Materials 87 | -10/Materials | Discovered new exit (range 13) 170 | -10/Materials | Discovered new exit (range 11) 259 | -10/Materials | Discovered new exit (range 16) 305 | -10/Materials | Build established: Mutant 321 | -10/Materials | Discovered new exit (range 10) 489 | -10/Materials | Discovered new exit (range 4) 569 | -10/Materials | Entered another Materials area 569 | -9/Materials | Evolved 2 slots: Propulsion x1, Utility x1 699 | -9/Materials | Lost 3 parts (1p2w) 718 | -9/Materials | Discovered new exit (range 13) 742 | -9/Materials | Discovered new exit (range 11) 1224 | -9/Materials | Core integrity fell below 50% 1359 | -9/Materials | Discovered new exit (range 16) 1553 | -9/Materials | Build established: Scavenger-Mutant 1662 | -9/Materials | Discovered new exit (range 6) 1865 | -9/Materials | Entered Storage 1884 | -9/Storage | Core integrity fell below 20% 2015 | -9/Storage | Build established: Mutant 2032 | -9/Storage | Destroyed by G-34 Mercenary with Small Laser Last Messages --------------- >>Recycling(Report) Matter reserves: 0 Inventory: Hvy. Hammer (70%) Imp. Treads (57%) Terrain Scan Processor (22%) >>Recycling(Process) Analyzing inventory... Recycling at 100% efficiency: Hvy. Hammer (32) Imp. Treads (25) Terrain Scan Processor (0) 02003_ ALERT: Suspicious activity at Recycling Unit S002. Dispatching Investigation squad. 02004_ Y-45 Defender emerges from the garrison. 02007_ G-34 Mercenary destroyed. 02014_ R-06 Scavenger collects Heat Sink. 02018_ Y-45 Defender destroyed. 02021_ G-34 Mercenary destroyed. 02028_ Y-45 Defender emerges from the garrison. Map ----- +----------------------------------------------------+ | | | ?????????????????????????????????????????????????? | | ?????????????????????????????????????????????????? | | ???????????????????????????????########??????????? | | ???????????????????????????????# # # ###????????? | | ???????????????????????????????## ##### #########? | | ???????????????????????????????# ### # ## | | ???????????????????????????????# = | | ???????????????????????????????# = ! ** = | | ???????????????????????????????## [ * % | | ???????????????????????????????# ### ## | | ???????????????????????????????## # # ## | | ????????????????????????????????### ## ## | | ???????????????????????????????#### ## !! ## | | ??????????????????????????######T## ## !] ## | | ??????????????????????????#=== = # ## !] ## | | ??????????????????????????# = ?+ ## ## | | ??????????????????????????#= = = # ## ## | | ??????????????????????????######### ## ## | | ??????????????????????????#####???# ## ## | | ??????????????????????????#"""#???# ## ## | | ??????????????????????????#"G"##### ########### | | ????????????????????????###"Y"##*## #?????????# | | ??????????????????????###[%[%!= # #?????????# | | ??????????????????????#"" !*g!! # #?????????# | | ??????????????????????#"Y@ [!![ # #?????????? | | ??????????????????????#"" ! + #?????????? | | ??????????????????????### """ # #??????????? | | ????????????????????????# """ # #??????????? | | ????????????????????????# """ # #??????????? | | ????????????????????????# + #??????????? | | ????????????????????????#####+##+#### #??????????? | | ????????????????????????????????????? #??????????? | | ????????????????????????????????????? #??????????? | | ????????????????????????????????????? #??????????? | | ????????????????????????????????????? #??????????? | | ????????????????????????????????????? #??????????? | | ????????????????????????????????????? ???????????? | | ????????????????????????????????????? ???????????? | | ?????????????????????????????????????????????????? | | ?????????????????????????????????????????????????? | | ?????????????????????????????????????????????????? | | ?????????????????????????????????????????????????? | | ?????????????????????????????????????????????????? | | ?????????????????????????????????????????????????? | | ?????????????????????????????????????????????????? | | ?????????????????????????????????????????????????? | | ?????????????????????????????????????????????????? | | ?????????????????????????????????????????????????? | | ?????????????????????????????????????????????????? | +----------------------------------------------------+ Best States ------------- Heat Dissipation 28 Energy Generation 14 Energy Capacity 280 Matter Stores 300 Matter Capacity 300 Sight Range 16 Robot Scan Range 14 Terrain Scan Density 10 Evasion (%) 55 Targeting Accuracy 8 Recoil Reduction 2 Item Schematics ----------------- None Robot Schematics ------------------ None Fabricated ------------ Nothing Repaired ---------- Nothing Studied --------- None Alien Tech Used ----------------- None Achievements -------------- None Challenges ------------ None Game ------ Seed EfficiencyCombatStatue Manual? 0 Play Time 00:15:39 Cumulative 63.2 hours Start 2025.12.26 @ 19:13:39 End 2025.12.26 @ 19:28:14 Sessions 1 Manual Loads 0 Difficulty Rogue Special Mode None Game No. 95 Rogue 73 Adventurer 20 Explorer 2 Win Type - Total 0 Types 0/0/0/0/0/0/0/0/0/0 Lore% 43 Gallery% 37 Achievement% 26 Wizard Run 0 Options --------- Layout 1 ASCII 0 Keyboard 0 Movement Numpad Keybinds 0 Fullscreen 2 Font 24/Smallcaps Map View 50x35 Zoom Use 0% Tactical HUD 1 Map Filters NONE Filters NONE Steam 1 RUN: f9e6629c-1328-4ad8-bc5a-9c23cff690c0